fUSD/lending_fUSD_20240318
["ID","MTS","AMOUNT","RATE_DAILY","PERIOD"]
[319480304,1710799953023,-1026.0,0.00024225,2]
[319480305,1710799953032,-385.0,0.00024246,2]
[319480306,1710799953041,-1198.58803437,0.0002425,2]
[319480307,1710799953051,-5850.1559099,0.00024258,2]
[319480308,1710799953060,-2000.0,0.00024279,2]
[319480309,1710799953069,-2039.69107,0.000243,2]
[319480310,1710799953078,-500.0,0.00024315,2]
[319480311,1710799953087,-369.0,0.00024331,2]
[319480312,1710799953097,-158.12,0.00024342,2]
[319480313,1710799953106,-22230.29438275,0.0002436,2]
[319480314,1710799953116,-150.0,0.00024382,2]
[319480315,1710799953126,-150.0,0.00024382,2]
[319480316,1710799953135,-321.28379103,0.00024383,2]
[319480317,1710799953144,-500.0,0.00024383,2]
[319480318,1710799953154,-500.0,0.00024383,2]
[319480319,1710799953165,-306.42325477,0.00024383,2]
[319480320,1710799953174,-500.0,0.00024383,2]
[319480321,1710799953183,-754.65,0.00024383,2]
[319480322,1710799953192,-500.0,0.00024383,2]
[319480323,1710799953201,-1183.48,0.00024383,2]
[319480324,1710799953210,-500.0,0.00024383,2]
[319480325,1710799953219,-500.0,0.00024383,2]
[319480326,1710799953228,-500.0,0.00024383,2]
[319480327,1710799953237,-500.0,0.00024383,2]
[319480328,1710799953247,-500.0,0.00024383,2]
[319480329,1710799953257,-841.06,0.00024383,2]
[319480330,1710799953266,-1050.21,0.00024383,2]
[319480331,1710799953276,-603.24,0.00024383,2]
[319480332,1710799953286,-426.55508558,0.00024383,2]
[319480333,1710799953295,-864.95,0.00024383,2]
[319480334,1710799953305,-500.0,0.00024383,2]
[319480335,1710799953314,-801.98,0.00024383,2]
[319480336,1710799953324,-2023.13,0.00024383,2]
[319480337,1710799953335,-373.03330899,0.00024383,2]
[319480338,1710799953345,-435.49340801,0.00024383,2]
[319480339,1710799953355,-2257.25,0.00024383,2]
[319480340,1710799953366,-1080.91,0.00024383,2]
[319480341,1710799953376,-794.11,0.00024383,2]
[319480342,1710799953386,-753.34,0.00024383,2]
[319480343,1710799953396,-500.0,0.00024383,2]
[319480344,1710799953407,-841.73,0.00024383,2]
[319480345,1710799953422,-2219.16,0.00024383,2]
[319480346,1710799953432,-637.28,0.00024383,2]
[319480347,1710799953442,-822.95,0.00024383,2]
[319480348,1710799953452,-532.03,0.00024383,2]
[319480349,1710799953462,-500.0,0.00024383,2]
[319480350,1710799953473,-500.0,0.00024383,2]
[319480351,1710799953484,-666.77,0.00024383,2]
[319480352,1710799953493,-500.0,0.00024383,2]
[319480353,1710799953504,-2410.75,0.00024383,2]
[319480354,1710799953514,-503.09154086,0.00024383,2]
[319480355,1710799953525,-1083.62,0.00024383,2]
[319480356,1710799953535,-1096.76,0.00024383,2]
[319480357,1710799953546,-1153.52,0.00024383,2]
[319480358,1710799953556,-500.0,0.00024383,2]
[319480359,1710799953566,-500.0,0.00024383,2]
[319480360,1710799953577,-1579.95,0.00024383,2]
[319480361,1710799953588,-1079.02,0.00024383,2]
[319480362,1710799953599,-500.0,0.00024383,2]
[319480363,1710799953609,-500.0,0.00024383,2]
[319480364,1710799953619,-500.0,0.00024383,2]
[319480365,1710799953629,-500.0,0.00024383,2]
[319480366,1710799953639,-604.92,0.00024383,2]
[319480367,1710799953650,-2112.17,0.00024383,2]
[319480368,1710799953661,-788.06,0.00024383,2]
[319480369,1710799953673,-965.6,0.00024383,2]
[319480370,1710799953684,-567.24,0.00024383,2]
[319480371,1710799953694,-1057.53,0.00024383,2]
[319480372,1710799953704,-500.0,0.00024383,2]
[319480373,1710799953714,-1346.77,0.00024383,2]
[319480374,1710799953724,-712.98,0.00024383,2]
[319480375,1710799953733,-624.81,0.00024383,2]
[319480376,1710799953743,-1820.6,0.00024383,2]
[319480377,1710799953752,-500.0,0.00024383,2]
[319480378,1710799953768,-750.79,0.00024383,2]
[319480379,1710799953777,-628.64,0.00024383,2]
[319480380,1710799953788,-787.89,0.00024383,2]
[319480381,1710799953798,-593.51,0.00024383,2]
[319480382,1710799953807,-750.42,0.00024383,2]
[319480383,1710799953817,-500.0,0.00024383,2]
[319480384,1710799953827,-622.98,0.00024383,2]
[319480385,1710799953837,-1628.79,0.00024383,2]
[319480386,1710799953847,-500.0,0.00024383,2]
[319480387,1710799953856,-830.73,0.00024383,2]
[319480388,1710799953867,-3414.73,0.00024383,2]
[319480389,1710799953877,-837.33,0.00024383,2]
[319480390,1710799953887,-500.0,0.00024383,2]
[319480391,1710799953896,-1594.83,0.00024383,2]
[319480392,1710799953906,-1565.76,0.00024383,2]
[319480393,1710799953916,-500.0,0.00024383,2]
[319480394,1710799953926,-500.0,0.00024383,2]
[319480395,1710799953937,-2289.86,0.00024383,2]
[319480396,1710799953946,-2327.27,0.00024383,2]
[319480397,1710799953956,-1043.46,0.00024383,2]
[319480398,1710799953965,-1166.79,0.00024383,2]
[319480399,1710799953975,-549.91,0.00024383,2]
[319480400,1710799953985,-568.66,0.00024383,2]
[319480401,1710799953995,-771.19,0.00024383,2]
[319480402,1710799954004,-2753.66,0.00024383,2]
[319480403,1710799954014,-1513.08,0.00024383,2]
[319480404,1710799954023,-1842.48,0.00024383,2]
[319480405,1710799954033,-500.0,0.00024383,2]
[319480406,1710799954043,-1460.74,0.00024383,2]
[319480407,1710799954052,-500.0,0.00024383,2]
[319480408,1710799954062,-942.07,0.00024383,2]
[319480409,1710799954071,-895.46,0.00024383,2]
[319480410,1710799954080,-1989.79,0.00024383,2]
[319480411,1710799954090,-500.0,0.00024383,2]
[319480412,1710799954099,-1990.34,0.00024383,2]
[319480413,1710799954108,-500.0,0.00024383,2]
[319480414,1710799954118,-570.11,0.00024383,2]
[319480415,1710799954127,-594.54,0.00024383,2]
[319480416,1710799954136,-500.0,0.00024383,2]
[319480417,1710799954146,-500.0,0.00024383,2]
[319480418,1710799954155,-235.25958408,0.00024383,2]
[319480419,1710799954164,-2010.18,0.00024383,2]
[319480420,1710799954174,-500.0,0.00024383,2]
[319480421,1710799954184,-500.0,0.00024383,2]
[319480422,1710799954193,-1089.38,0.00024383,2]
[319480423,1710799954202,-1225.65,0.00024383,2]
[319480424,1710799954212,-705.19,0.00024383,2]
[319480425,1710799954221,-2976.15,0.00024383,2]
[319480426,1710799954231,-508.99,0.00024383,2]
[319480427,1710799954240,-501.15,0.00024383,2]
[319480428,1710799954250,-1173.9,0.00024383,2]
[319480429,1710799954259,-500.0,0.00024383,2]
[319480430,1710799954268,-1787.1,0.00024383,2]
[319480431,1710799954278,-500.0,0.00024383,2]
[319480432,1710799954288,-1969.89,0.00024383,2]
[319480433,1710799954298,-551.56,0.00024383,2]
[319480434,1710799954308,-500.0,0.00024383,2]
[319480435,1710799954318,-500.0,0.00024383,2]
[319480436,1710799954327,-634.39,0.00024383,2]
[319480437,1710799954337,-515.85,0.00024383,2]
[319480438,1710799954346,-1763.14,0.00024383,2]
[319480439,1710799954356,-500.0,0.00024383,2]
[319480440,1710799954365,-1610.23,0.00024383,2]
[319480441,1710799954375,-698.44,0.00024383,2]
[319480442,1710799954384,-757.78,0.00024383,2]
[319480443,1710799954393,-500.0,0.00024383,2]
[319480444,1710799954410,-500.0,0.00024383,2]
[319480445,1710799954419,-527.71620471,0.00024383,2]
[319480446,1710799954429,-3621.53,0.00024383,2]
[319480447,1710799954440,-1107.01,0.00024383,2]
[319480448,1710799954450,-500.0,0.00024383,2]
[319480449,1710799954459,-3272.98,0.00024383,2]
[319480450,1710799954468,-500.0,0.00024383,2]
[319480451,1710799954478,-500.0,0.00024383,2]
[319480452,1710799954488,-617.42,0.00024383,2]
[319480453,1710799954498,-500.0,0.00024383,2]
[319480454,1710799954508,-833.03,0.00024383,2]
[319480455,1710799954518,-1059.1,0.00024383,2]
[319480456,1710799954528,-500.0,0.00024383,2]
[319480457,1710799954538,-2995.13,0.00024383,2]
[319480458,1710799954548,-500.0,0.00024383,2]
[319480459,1710799954557,-500.0,0.00024383,2]
[319480460,1710799954567,-1379.17,0.00024383,2]
[319480461,1710799954579,-2205.14,0.00024383,2]
[319480462,1710799954591,-500.0,0.00024383,2]
[319480463,1710799954601,-1296.97,0.00024383,2]
[319480464,1710799954611,-684.91,0.00024383,2]
[319480465,1710799954622,-500.0,0.00024383,2]
[319480466,1710799954632,-1167.23,0.00024383,2]
[319480467,1710799954642,-500.0,0.00024383,2]
[319480468,1710799954652,-500.0,0.00024383,2]
[319480469,1710799954664,-500.0,0.00024383,2]
[319480470,1710799954673,-1111.67,0.00024383,2]
[319480471,1710799954684,-500.0,0.00024383,2]
[319480472,1710799954693,-1840.74,0.00024383,2]
[319480473,1710799954703,-1159.15,0.00024383,2]
[319480474,1710799954712,-500.0,0.00024383,2]
[319480475,1710799954721,-1071.26,0.00024383,2]
[319480476,1710799954731,-500.0,0.00024383,2]
[319480477,1710799954740,-732.2,0.00024383,2]
[319480478,1710799954750,-500.0,0.00024383,2]
[319480479,1710799954760,-2487.12,0.00024383,2]
[319480480,1710799954769,-1409.81,0.00024383,2]
[319480481,1710799954778,-2258.29,0.00024383,2]
[319480482,1710799954787,-500.0,0.00024383,2]
[319480483,1710799954797,-885.61,0.00024383,2]
[319480484,1710799954807,-728.7,0.00024383,2]
[319480485,1710799954816,-981.29,0.00024383,2]
[319480486,1710799954826,-619.02,0.00024383,2]
[319480487,1710799954836,-500.0,0.00024383,2]
[319480488,1710799954845,-3027.38,0.00024383,2]
[319480489,1710799955075,-2230.77,0.00024383,2]
[319480490,1710799955086,-2148.85,0.00024383,2]
[319480491,1710799955096,-847.31,0.00024383,2]
[319480492,1710799955106,-500.0,0.00024383,2]
[319480493,1710799955116,-500.0,0.00024383,2]
[319480494,1710799955126,-500.0,0.00024383,2]
[319480495,1710799955136,-1040.92,0.00024383,2]
[319480496,1710799955146,-500.0,0.00024383,2]
[319480497,1710799955156,-1016.05,0.00024383,2]
[319480498,1710799955166,-625.78,0.00024383,2]
[319480499,1710799955176,-1988.29,0.00024383,2]
[319480500,1710799955187,-673.87,0.00024383,2]
[319480501,1710799955197,-500.0,0.00024383,2]
[319480502,1710799955207,-803.43,0.00024383,2]
[319480503,1710799955218,-2712.0,0.00024383,2]
[319480504,1710799955228,-618.27,0.00024383,2]
[319480505,1710799955237,-1492.36,0.00024383,2]
[319480506,1710799955247,-925.33,0.00024383,2]
[319480507,1710799955257,-1934.24,0.00024383,2]
[319480508,1710799955266,-1347.96,0.00024383,2]
[319480509,1710799955277,-500.0,0.00024383,2]
[319480510,1710799955287,-500.0,0.00024383,2]
[319480511,1710799955296,-500.0,0.00024383,2]
[319480512,1710799955306,-618.35,0.00024383,2]
[319480513,1710799955315,-331.20159922,0.00024383,2]
[319480514,1710799955325,-3249.34,0.00024383,2]
[319480515,1710799955334,-736.87,0.00024383,2]
[319480516,1710799955344,-500.0,0.00024383,2]
[319480517,1710799955354,-1048.99,0.00024383,2]
[319480518,1710799955363,-555.58,0.00024383,2]
[319480519,1710799955373,-500.0,0.00024383,2]
[319480520,1710799955383,-695.99,0.00024383,2]
[319480521,1710799955393,-500.0,0.00024383,2]
[319480522,1710799955403,-500.0,0.00024383,2]
[319480523,1710799955413,-1686.42,0.00024383,2]
[319480524,1710799955423,-512.23866451,0.00024383,2]
[319480525,1710799955434,-197.1868526,0.00024383,2]
[319480526,1710799955445,-500.0,0.00024383,2]
[319480527,1710799955454,-500.0,0.00024383,2]
[319480528,1710799955464,-2027.85,0.00024383,2]
[319480529,1710799955474,-3300.65,0.00024383,2]
[319480530,1710799955484,-1879.8,0.00024383,2]
[319480531,1710799955495,-600.13,0.00024383,2]
[319480532,1710799955505,-689.62,0.00024383,2]
[319480533,1710799955514,-3602.93,0.00024383,2]
[319480534,1710799955524,-500.0,0.00024383,2]
[319480535,1710799955534,-500.0,0.00024383,2]
[319480536,1710799955545,-839.53,0.00024383,2]
[319480537,1710799955555,-500.0,0.00024383,2]
[319480538,1710799955564,-734.91,0.00024383,2]
[319480539,1710799955574,-1753.56,0.00024383,2]
[319480540,1710799955585,-839.74,0.00024383,2]
[319480541,1710799955598,-500.0,0.00024383,2]
[319480542,1710799955608,-500.0,0.00024383,2]
[319480543,1710799955617,-4941.23,0.00024383,2]
[319480544,1710799955629,-924.55,0.00024383,2]
[319480545,1710799955638,-646.58,0.00024383,2]
[319480546,1710799955648,-1444.11,0.00024383,2]
[319480547,1710799955658,-1862.07,0.00024383,2]
[319480548,1710799955669,-2596.77,0.00024383,2]
[319480549,1710799955679,-1913.61,0.00024383,2]
[319480550,1710799955689,-600.66,0.00024383,2]
[319480551,1710799955699,-1169.17,0.00024383,2]
[319480552,1710799955708,-501.0,0.00024383,2]
[319480553,1710799955718,-671.74,0.00024383,2]
[319480554,1710799955730,-479.13805602,0.00024383,2]
[319480555,1710799955739,-660.79,0.00024383,2]
[319480556,1710799955749,-500.0,0.00024383,2]
[319480557,1710799955759,-500.0,0.00024383,2]
[319480558,1710799955769,-4429.56,0.00024383,2]
[319480559,1710799955778,-645.13,0.00024383,2]
[319480560,1710799955788,-1387.34,0.00024383,2]
[319480561,1710799955798,-500.0,0.00024383,2]
[319480562,1710799955807,-500.0,0.00024383,2]
[319480563,1710799955817,-1092.65,0.00024383,2]
[319480564,1710799955826,-1234.18,0.00024383,2]
[319480565,1710799955836,-775.21,0.00024383,2]
[319480566,1710799955846,-1640.92,0.00024383,2]
[319480567,1710799955856,-660.8,0.00024383,2]
[319480568,1710799955866,-618.02,0.00024383,2]
[319480569,1710799955876,-335.71451276,0.00024383,2]
[319480570,1710799955886,-2991.4,0.00024383,2]
[319480571,1710799955896,-500.0,0.00024383,2]
[319480572,1710799955906,-526.67,0.00024383,2]
[319480573,1710799955915,-520.66,0.00024383,2]
[319480574,1710799955925,-182.36859023,0.00024383,2]
[319480575,1710799955935,-3432.69,0.00024383,2]
[319480576,1710799955946,-929.21,0.00024383,2]
[319480577,1710799955956,-2512.6,0.00024383,2]
[319480578,1710799955967,-500.0,0.00024383,2]
[319480579,1710799955976,-553.17,0.00024383,2]
[319480580,1710799955986,-632.91,0.00024383,2]
[319480581,1710799955996,-587.03,0.00024383,2]
[319480582,1710799956006,-500.0,0.00024383,2]
[319480583,1710799956016,-500.0,0.00024383,2]
[319480584,1710799956026,-1670.28,0.00024383,2]
[319480585,1710799956036,-1508.72,0.00024383,2]
[319480586,1710799956046,-588.94,0.00024383,2]
[319480587,1710799956056,-500.0,0.00024383,2]
[319480588,1710799956065,-2672.81,0.00024383,2]
[319480589,1710799956075,-992.88,0.00024383,2]
[319480590,1710799956085,-1421.34,0.00024383,2]
[319480591,1710799956094,-1479.34,0.00024383,2]
[319480592,1710799956104,-1591.7,0.00024383,2]
[319480593,1710799956113,-778.13,0.00024383,2]
[319480594,1710799956123,-549.69,0.00024383,2]
[319480595,1710799956132,-500.0,0.00024383,2]
[319480596,1710799956143,-1096.72,0.00024383,2]
[319480597,1710799956153,-160.06794908,0.00024383,2]
[319480598,1710799956163,-2210.21,0.00024383,2]
[319480599,1710799956173,-1855.24,0.00024383,2]
[319480600,1710799956183,-1181.58,0.00024383,2]
[319480601,1710799956193,-869.7,0.00024383,2]
[319480602,1710799956203,-500.0,0.00024383,2]
[319480603,1710799956213,-1747.53,0.00024383,2]
[319480604,1710799956223,-680.92,0.00024383,2]
[319480605,1710799956233,-500.0,0.00024383,2]
[319480606,1710799956243,-665.42,0.00024383,2]
[319480607,1710799956253,-1501.92,0.00024383,2]
[319480608,1710799956263,-2323.42,0.00024383,2]
[319480609,1710799956273,-2355.45,0.00024383,2]
[319480610,1710799956283,-2348.13,0.00024383,2]
[319480611,1710799956292,-1841.43,0.00024383,2]
[319480612,1710799956302,-500.0,0.00024383,2]
[319480613,1710799956312,-633.95,0.00024383,2]
[319480614,1710799956321,-2789.32,0.00024383,2]
[319480615,1710799956331,-1047.26,0.00024383,2]
[319480616,1710799956340,-500.0,0.00024383,2]
[319480617,1710799956350,-506.7,0.00024383,2]
[319480618,1710799956359,-500.0,0.00024383,2]
[319480619,1710799956369,-2028.96,0.00024383,2]
[319480620,1710799956380,-727.29,0.00024383,2]
[319480621,1710799956389,-500.0,0.00024383,2]
[319480622,1710799956399,-1121.74,0.00024383,2]
[319480623,1710799956410,-500.0,0.00024383,2]
[319480624,1710799956420,-500.0,0.00024383,2]
[319480625,1710799956429,-1964.52,0.00024383,2]
[319480626,1710799956440,-800.57,0.00024383,2]
[319480627,1710799956450,-855.83,0.00024383,2]
[319480628,1710799956460,-515.18,0.00024383,2]
[319480629,1710799956471,-805.44,0.00024383,2]
[319480630,1710799956480,-1465.25,0.00024383,2]
[319480631,1710799956490,-1137.55,0.00024383,2]
[319480632,1710799956500,-703.59,0.00024383,2]
[319480633,1710799956509,-1372.51,0.00024383,2]
[319480634,1710799956519,-500.0,0.00024383,2]
[319480635,1710799956529,-1311.42,0.00024383,2]
[319480636,1710799956539,-693.23,0.00024383,2]
[319480637,1710799956548,-890.31,0.00024383,2]
[319480638,1710799956558,-606.63,0.00024383,2]
[319480639,1710799956567,-1355.8,0.00024383,2]
[319480640,1710799956577,-633.23,0.00024383,2]
[319480641,1710799956588,-1311.22,0.00024383,2]
[319480642,1710799956599,-931.19,0.00024383,2]
[319480643,1710799956609,-500.0,0.00024383,2]
[319480644,1710799956619,-931.2,0.00024383,2]
[319480645,1710799956629,-500.0,0.00024383,2]
[319480646,1710799956639,-560.88,0.00024383,2]
[319480647,1710799956649,-578.22,0.00024383,2]
[319480648,1710799956659,-1373.23,0.00024383,2]
[319480649,1710799956668,-1189.08,0.00024383,2]
[319480650,1710799956678,-582.88,0.00024383,2]
[319480651,1710799956689,-500.0,0.00024383,2]
[319480652,1710799956699,-807.67,0.00024383,2]
[319480653,1710799956708,-500.0,0.00024383,2]
[319480654,1710799956718,-500.0,0.00024383,2]
[319480655,1710799956727,-500.0,0.00024383,2]
[319480656,1710799956737,-500.0,0.00024383,2]
[319480657,1710799956746,-1318.07,0.00024383,2]
[319480658,1710799956756,-2537.59,0.00024383,2]
[319480659,1710799956766,-1833.13,0.00024383,2]
[319480660,1710799956776,-500.0,0.00024383,2]
[319480661,1710799956785,-584.63,0.00024383,2]
[319480662,1710799956794,-922.71,0.00024383,2]
[319480663,1710799956803,-522.08,0.00024383,2]
[319480664,1710799956812,-667.48,0.00024383,2]
[319480665,1710799956821,-1186.68,0.00024383,2]
[319480666,1710799956831,-500.0,0.00024383,2]
[319480667,1710799956840,-797.09,0.00024383,2]
[319480668,1710799956849,-1847.99,0.00024383,2]
[319480669,1710799956858,-500.0,0.00024383,2]
[319480670,1710799956868,-998.55,0.00024383,2]
[319480671,1710799956877,-500.0,0.00024383,2]
[319480672,1710799956886,-1079.26,0.00024383,2]
[319480673,1710799956895,-1856.02,0.00024383,2]
[319480674,1710799956904,-1418.3,0.00024383,2]
[319480675,1710799956913,-897.94,0.00024383,2]
[319480676,1710799956922,-1186.25,0.00024383,2]
[319480677,1710799956931,-844.5,0.00024383,2]
[319480678,1710799956940,-500.0,0.00024383,2]
[319480679,1710799956949,-1228.33,0.00024383,2]
[319480680,1710799956958,-656.86,0.00024383,2]
[319480681,1710799956967,-500.0,0.00024383,2]
[319480682,1710799956976,-1254.05,0.00024383,2]
[319480683,1710799956985,-1220.28,0.00024383,2]
[319480684,1710799956994,-524.26,0.00024383,2]
[319480685,1710799957004,-500.0,0.00024383,2]
[319480686,1710799957013,-544.86,0.00024383,2]
[319480687,1710799957023,-1112.38,0.00024383,2]
[319480688,1710799957032,-1554.62,0.00024383,2]
[319480689,1710799957042,-564.50736779,0.00024383,2]
[319480690,1710799957053,-990.25,0.00024383,2]
[319480691,1710799957062,-1046.24,0.00024383,2]
[319480692,1710799957071,-525.88,0.00024383,2]
[319480693,1710799957080,-615.98,0.00024383,2]
[319480694,1710799957089,-1017.43,0.00024383,2]
[319480695,1710799957098,-500.0,0.00024383,2]
[319480696,1710799957107,-1155.33,0.00024383,2]
[319480697,1710799957116,-3244.32,0.00024383,2]
[319480698,1710799957125,-527.83,0.00024383,2]
[319480699,1710799957134,-500.0,0.00024383,2]
[319480700,1710799957143,-1754.86,0.00024383,2]
[319480701,1710799957152,-1859.5,0.00024383,2]
[319480702,1710799957161,-721.17,0.00024383,2]
[319480703,1710799957170,-1204.75,0.00024383,2]
[319480704,1710799957179,-1304.47,0.00024383,2]
[319480705,1710799957190,-500.0,0.00024383,2]
[319480706,1710799957199,-1387.32,0.00024383,2]
[319480707,1710799957208,-1084.75,0.00024383,2]
[319480708,1710799957217,-984.35,0.00024383,2]
[319480709,1710799957226,-500.0,0.00024383,2]
[319480710,1710799957236,-500.0,0.00024383,2]
[319480711,1710799957246,-500.0,0.00024383,2]
[319480712,1710799957256,-1042.11,0.00024383,2]
[319480713,1710799957265,-550.03,0.00024383,2]
[319480714,1710799957274,-500.0,0.00024383,2]
[319480715,1710799957283,-3263.23,0.00024383,2]
[319480716,1710799957292,-1980.05,0.00024383,2]
[319480717,1710799957301,-1334.24,0.00024383,2]
[319480718,1710799957310,-1006.81,0.00024383,2]
[319480719,1710799957319,-500.0,0.00024383,2]
[319480720,1710799957328,-500.0,0.00024383,2]
[319480721,1710799957337,-879.01,0.00024383,2]
[319480722,1710799957346,-577.06,0.00024383,2]
[319480723,1710799957355,-772.45,0.00024383,2]
[319480724,1710799957365,-1289.15,0.00024383,2]
[319480725,1710799957374,-500.0,0.00024383,2]
[319480726,1710799957383,-500.0,0.00024383,2]
[319480727,1710799957393,-500.0,0.00024383,2]
[319480728,1710799957402,-1162.86,0.00024383,2]
[319480729,1710799957411,-189.53055955,0.00024383,2]
[319480730,1710799957421,-539.59,0.00024383,2]
[319480731,1710799957430,-500.0,0.00024383,2]
[319480732,1710799957441,-1284.59,0.00024383,2]
[319480733,1710799957450,-1343.86,0.00024383,2]
[319480734,1710799957459,-2423.47,0.00024383,2]
[319480735,1710799957469,-500.0,0.00024383,2]
[319480736,1710799957478,-790.0,0.00024383,2]
[319480737,1710799957487,-1561.78,0.00024383,2]
[319480738,1710799957588,-2345.93,0.00024383,2]
[319480739,1710799957598,-1543.03,0.00024383,2]
[319480740,1710799957607,-688.89,0.00024383,2]
[319480741,1710799957616,-503.06402262,0.00024383,2]
[319480742,1710799957626,-500.0,0.00024383,2]
[319480743,1710799957636,-779.42,0.00024383,2]
[319480744,1710799957645,-353.1718556,0.00024383,2]
[319480745,1710799957654,-500.0,0.00024383,2]
[319480746,1710799957665,-1455.91,0.00024383,2]
[319480747,1710799957674,-964.51,0.00024383,2]
[319480748,1710799957684,-500.0,0.00024383,2]
[319480749,1710799957692,-1604.71,0.00024383,2]
[319480750,1710799957701,-865.84,0.00024383,2]
[319480751,1710799957710,-500.0,0.00024383,2]
[319480752,1710799957719,-1347.47,0.00024383,2]
[319480753,1710799957727,-1883.82,0.00024383,2]
[319480754,1710799957738,-500.0,0.00024383,2]
[319480755,1710799957747,-500.0,0.00024383,2]
[319480756,1710799957756,-615.15,0.00024383,2]
[319480757,1710799957765,-500.0,0.00024383,2]
[319480758,1710799957774,-500.0,0.00024383,2]
[319480759,1710799957782,-743.05,0.00024383,2]
[319480760,1710799957791,-1288.43,0.00024383,2]
[319480761,1710799957800,-532.05,0.00024383,2]
[319480762,1710799957809,-1050.86,0.00024383,2]
[319480763,1710799957818,-568.35,0.00024383,2]
[319480764,1710799957827,-500.0,0.00024383,2]
[319480765,1710799957836,-500.0,0.00024383,2]
[319480766,1710799957845,-500.0,0.00024383,2]
[319480767,1710799957854,-500.0,0.00024383,2]
[319480768,1710799957863,-801.95,0.00024383,2]
[319480769,1710799957872,-1387.79,0.00024383,2]
[319480770,1710799957881,-3692.13,0.00024383,2]
[319480771,1710799957890,-1021.88,0.00024383,2]
[319480772,1710799957899,-1736.34,0.00024383,2]
[319480773,1710799957909,-500.0,0.00024383,2]
[319480774,1710799957918,-722.05,0.00024383,2]
[319480775,1710799957927,-2682.4,0.00024383,2]
[319480776,1710799957938,-500.0,0.00024383,2]
[319480777,1710799957947,-917.72,0.00024383,2]
[319480778,1710799957955,-1582.16,0.00024383,2]
[319480779,1710799957965,-507.3952565,0.00024383,2]
[319480780,1710799957974,-500.0,0.00024383,2]
[319480781,1710799957982,-500.0,0.00024383,2]
[319480782,1710799957992,-500.0,0.00024383,2]
[319480783,1710799958001,-500.0,0.00024383,2]
[319480784,1710799958010,-500.0,0.00024383,2]
[319480785,1710799958019,-500.0,0.00024383,2]
[319480786,1710799958029,-500.0,0.00024383,2]
[319480787,1710799958038,-899.67,0.00024383,2]
[319480788,1710799958048,-500.0,0.00024383,2]
[319480789,1710799958057,-1197.99,0.00024383,2]
[319480790,1710799958067,-2570.57,0.00024383,2]
[319480791,1710799958077,-832.49,0.00024383,2]
[319480792,1710799958087,-500.0,0.00024383,2]
[319480793,1710799958096,-500.0,0.00024383,2]
[319480794,1710799958106,-500.0,0.00024383,2]
[319480795,1710799958115,-2336.68,0.00024383,2]
[319480796,1710799958124,-714.57,0.00024383,2]
[319480797,1710799958133,-572.14,0.00024383,2]
[319480798,1710799958142,-500.0,0.00024383,2]
[319480799,1710799958151,-570.84,0.00024383,2]
[319480800,1710799958161,-500.0,0.00024383,2]
[319480801,1710799958171,-1267.22,0.00024383,2]
[319480802,1710799958181,-500.0,0.00024383,2]
[319480803,1710799958192,-1986.27,0.00024383,2]